[Event "Early-Titled-Tuesday-Blitz-February-13-2024"]
[Site "Chess.com"]
[Date "2024.02.13"]
[Round "3"]
[White "Radzio1987"]
[Black "Dinamo3"]
[Result "1-0"]
[WhiteElo "2899"]
[BlackElo "2524"]
[TimeControl "180+1"]
[EndTime "8:32:01 PST"]
[Termination "Radzio1987 won on time"]

1. c4 {[%clk 0:03:00.9]} 1... Nf6 {[%clk 0:02:59.7]} 2. Nc3 {[%clk 0:03:00.7]}
2... g6 {[%clk 0:02:59.7]} 3. g3 {[%clk 0:03:00.9]} 3... Bg7 {[%clk 0:02:59.8]}
4. Bg2 {[%clk 0:03:01.3]} 4... O-O {[%clk 0:03:00.5]} 5. d4 {[%clk 0:02:59.4]}
5... d6 {[%clk 0:03:00.7]} 6. Nf3 {[%clk 0:02:59.6]} 6... Nc6 {[%clk 0:03:01]}
7. O-O {[%clk 0:02:57.9]} 7... Bf5 {[%clk 0:03:01]} 8. Nh4 {[%clk 0:02:53.8]}
8... Bd7 {[%clk 0:03:00.7]} 9. b3 {[%clk 0:02:48.5]} 9... a6 {[%clk 0:02:59.5]}
10. Bb2 {[%clk 0:02:44.9]} 10... Rb8 {[%clk 0:02:59.7]} 11. Rc1 {[%clk
0:02:40.8]} 11... e5 {[%clk 0:02:37.5]} 12. dxe5 {[%clk 0:02:37.3]} 12... dxe5
{[%clk 0:02:37.1]} 13. Nd5 {[%clk 0:02:31.7]} 13... Be6 {[%clk 0:01:47.1]} 14.
Qd2 {[%clk 0:02:30]} 14... Nd4 {[%clk 0:01:41.8]} 15. e3 {[%clk 0:02:23.5]}
15... Nf5 {[%clk 0:01:37]} 16. Nxf5 {[%clk 0:02:11.3]} 16... Bxf5 {[%clk
0:01:36.5]} 17. Rfd1 {[%clk 0:01:47.2]} 17... c6 {[%clk 0:01:21.2]} 18. Nxf6+
{[%clk 0:01:40.9]} 18... Qxf6 {[%clk 0:01:20.2]} 19. Qa5 {[%clk 0:01:40.7]}
19... Qe6 {[%clk 0:01:10.2]} 20. Ba3 {[%clk 0:01:35.9]} 20... Rfe8 {[%clk
0:01:05.2]} 21. Rd6 {[%clk 0:01:35.8]} 21... Qc8 {[%clk 0:01:05.5]} 22. Rcd1
{[%clk 0:01:31.1]} 22... Bf8 {[%clk 0:01:01.4]} 23. R6d2 {[%clk 0:01:29.1]}
23... Bxa3 {[%clk 0:01:00.1]} 24. Qxa3 {[%clk 0:01:29.1]} 24... Qc7 {[%clk
0:01:00.7]} 25. Qc5 {[%clk 0:01:17.1]} 25... Bg4 {[%clk 0:00:51.6]} 26. f3
{[%clk 0:01:16.8]} 26... Be6 {[%clk 0:00:49.1]} 27. Rd6 {[%clk 0:01:13.6]} 27...
f6 {[%clk 0:00:37.2]} 28. e4 {[%clk 0:01:12]} 28... Rbd8 {[%clk 0:00:22.8]} 29.
Bf1 {[%clk 0:01:04.3]} 29... Rxd6 {[%clk 0:00:22.9]} 30. Rxd6 {[%clk 0:01:03.3]}
30... Kf7 {[%clk 0:00:21.3]} 31. f4 {[%clk 0:00:53.8]} 31... exf4 {[%clk
0:00:19.6]} 32. gxf4 {[%clk 0:00:54.7]} 32... Rd8 {[%clk 0:00:19.1]} 33. e5
{[%clk 0:00:55.1]} 33... Rxd6 {[%clk 0:00:14.9]} 34. exd6 {[%clk 0:00:56]} 34...
Qd7 {[%clk 0:00:15.6]} 35. Qd4 {[%clk 0:00:56.1]} 35... Qe8 {[%clk 0:00:09.2]}
36. c5 {[%clk 0:00:54.1]} 36... Qd7 {[%clk 0:00:09.7]} 37. Kf2 {[%clk
0:00:53.8]} 37... Bd5 {[%clk 0:00:08.3]} 38. Bc4 {[%clk 0:00:53.1]} 38... Bxc4
{[%clk 0:00:06]} 39. Qxc4+ {[%clk 0:00:53]} 39... Kg7 {[%clk 0:00:06.4]} 40. Qe4
{[%clk 0:00:52.9]} 40... Kf7 {[%clk 0:00:06.2]} 41. Kg3 {[%clk 0:00:48.8]} 41...
Qd8 {[%clk 0:00:04.7]} 42. f5 {[%clk 0:00:46.5]} 42... Qd7 {[%clk 0:00:04.8]}
43. Kf4 {[%clk 0:00:46.4]} 43... Qd8 {[%clk 0:00:02.9]} 44. Qe6+ {[%clk
0:00:46.2]} 44... Kg7 {[%clk 0:00:02.9]} 45. d7 {[%clk 0:00:45.5]} 45... Qc7+
{[%clk 0:00:02.4]} 46. Qd6 {[%clk 0:00:45.9]} 46... Qd8 {[%clk 0:00:01.5]} 47.
Ke4 {[%clk 0:00:45.9]} 47... Kf7 {[%clk 0:00:01.9]} 48. Qe6+ {[%clk 0:00:45.4]}
48... Kg7 {[%clk 0:00:02.4]} 49. Qe8 {[%clk 0:00:45.3]} 1-0

[Event "Early-Titled-Tuesday-Blitz-February-13-2024"]
[Site "Chess.com"]
[Date "2024.02.13"]
[Round "3"]
[White "FairChess_on_YouTube"]
[Black "SirGerhard"]
[Result "1/2-1/2"]
[WhiteElo "3075"]
[BlackElo "2807"]
[TimeControl "180+1"]
[EndTime "8:32:04 PST"]
[Termination "Game drawn by repetition"]

1. d4 {[%clk 0:03:00.9]} 1... Nf6 {[%clk 0:02:59.7]} 2. c4 {[%clk 0:02:57.4]}
2... g6 {[%clk 0:02:59.6]} 3. Nc3 {[%clk 0:02:56.9]} 3... d5 {[%clk 0:02:59.4]}
4. cxd5 {[%clk 0:02:54.5]} 4... Nxd5 {[%clk 0:02:59.5]} 5. e4 {[%clk 0:02:54.9]}
5... Nxc3 {[%clk 0:02:59.8]} 6. bxc3 {[%clk 0:02:55.4]} 6... Bg7 {[%clk
0:03:00.3]} 7. Nf3 {[%clk 0:02:52.9]} 7... c5 {[%clk 0:03:00.6]} 8. Bb5+ {[%clk
0:02:53.2]} 8... Bd7 {[%clk 0:02:54.9]} 9. Bxd7+ {[%clk 0:02:51.1]} 9... Nxd7
{[%clk 0:02:54.3]} 10. O-O {[%clk 0:02:50.5]} 10... O-O {[%clk 0:02:53.9]} 11.
Rb1 {[%clk 0:02:49.3]} 11... Qc7 {[%clk 0:02:50.9]} 12. Bg5 {[%clk 0:02:37.7]}
12... e6 {[%clk 0:02:42]} 13. Qb3 {[%clk 0:02:29.6]} 13... b6 {[%clk 0:02:37.4]}
14. Rbd1 {[%clk 0:02:27.5]} 14... cxd4 {[%clk 0:02:33.8]} 15. cxd4 {[%clk
0:02:27.4]} 15... Rac8 {[%clk 0:02:34]} 16. Qa4 {[%clk 0:02:18.1]} 16... Qc6
{[%clk 0:02:23.3]} 17. Qxc6 {[%clk 0:02:11.3]} 17... Rxc6 {[%clk 0:02:23.1]} 18.
d5 {[%clk 0:01:58.9]} 18... exd5 {[%clk 0:02:22]} 19. exd5 {[%clk 0:01:59.1]}
19... Rc2 {[%clk 0:02:11.9]} 20. a4 {[%clk 0:01:49.6]} 20... h6 {[%clk 0:02:07]}
21. Be7 {[%clk 0:01:28.7]} 21... Re8 {[%clk 0:02:05.9]} 22. d6 {[%clk
0:01:28.5]} 22... Ra2 {[%clk 0:02:01.1]} 23. Rc1 {[%clk 0:01:26.4]} 23... Bf8
{[%clk 0:01:37.2]} 24. Rfe1 {[%clk 0:01:15.3]} 24... Bxe7 {[%clk 0:01:33]} 25.
Rxe7 {[%clk 0:00:56.3]} 25... Rd8 {[%clk 0:01:11.3]} 26. h3 {[%clk 0:00:47.4]}
26... Nc5 {[%clk 0:01:11.1]} 27. Ne5 {[%clk 0:00:37.7]} 27... Rxd6 {[%clk
0:01:10.8]} 28. Nxf7 {[%clk 0:00:37.7]} 28... Rf6 {[%clk 0:01:06.5]} 29. Nxh6+
{[%clk 0:00:37.1]} 29... Kf8 {[%clk 0:01:06.6]} 30. Rxa7 {[%clk 0:00:20.7]}
30... Rfxf2 {[%clk 0:01:03.6]} 31. Rf1 {[%clk 0:00:18.8]} 31... Rxf1+ {[%clk
0:00:59.2]} 32. Kxf1 {[%clk 0:00:19.7]} 32... Rxa4 {[%clk 0:00:59.6]} 33. Rf7+
{[%clk 0:00:16.1]} 33... Ke8 {[%clk 0:00:58.7]} 34. Rf6 {[%clk 0:00:16.9]} 34...
b5 {[%clk 0:00:48.5]} 35. Rxg6 {[%clk 0:00:16.8]} 35... b4 {[%clk 0:00:49.1]}
36. Rb6 {[%clk 0:00:14.8]} 36... b3 {[%clk 0:00:49]} 37. Rb5 {[%clk 0:00:13.3]}
37... Ra2 {[%clk 0:00:43.6]} 38. Rxc5 {[%clk 0:00:11.8]} 38... b2 {[%clk
0:00:43.7]} 39. Rb5 {[%clk 0:00:12.1]} 39... Ra1+ {[%clk 0:00:44.2]} 40. Kf2
{[%clk 0:00:11.9]} 40... b1=Q {[%clk 0:00:44.8]} 41. Rxb1 {[%clk 0:00:12.3]}
41... Rxb1 {[%clk 0:00:44.6]} 42. Nf5 {[%clk 0:00:11.6]} 42... Kf7 {[%clk
0:00:43.2]} 43. Nd4 {[%clk 0:00:11.5]} 43... Kf6 {[%clk 0:00:42]} 44. Nf3 {[%clk
0:00:11.7]} 44... Rb2+ {[%clk 0:00:40]} 45. Kg3 {[%clk 0:00:11.5]} 45... Rb3
{[%clk 0:00:40.2]} 46. Kf4 {[%clk 0:00:10.6]} 46... Rb4+ {[%clk 0:00:40.6]} 47.
Kg3 {[%clk 0:00:11.2]} 47... Rb3 {[%clk 0:00:40.7]} 48. Kf2 {[%clk 0:00:10.5]}
48... Rb2+ {[%clk 0:00:40.7]} 49. Kg3 {[%clk 0:00:08.9]} 49... Rb3 {[%clk
0:00:38.3]} 1/2-1/2

[Event "Early-Titled-Tuesday-Blitz-February-13-2024"]
[Site "Chess.com"]
[Date "2024.02.13"]
[Round "3"]
[White "TregubovP"]
[Black "Mr_ruthless"]
[Result "1-0"]
[WhiteElo "2684"]
[BlackElo "2488"]
[TimeControl "180+1"]
[EndTime "8:32:04 PST"]
[Termination "TregubovP won by checkmate"]

1. e4 {[%clk 0:03:00.9]} 1... e5 {[%clk 0:03:00.3]} 2. Nf3 {[%clk 0:03:00.9]}
2... Nc6 {[%clk 0:03:00.9]} 3. Bc4 {[%clk 0:02:59.1]} 3... Nf6 {[%clk
0:03:00.1]} 4. d3 {[%clk 0:02:58.5]} 4... Be7 {[%clk 0:02:58.4]} 5. O-O {[%clk
0:02:55.8]} 5... O-O {[%clk 0:02:58.7]} 6. Nc3 {[%clk 0:02:56]} 6... d6 {[%clk
0:02:57.8]} 7. h3 {[%clk 0:02:51.7]} 7... Nd7 {[%clk 0:02:56.6]} 8. a3 {[%clk
0:02:43.7]} 8... Nb6 {[%clk 0:02:55.7]} 9. Ba2 {[%clk 0:02:41]} 9... Kh8 {[%clk
0:02:56.3]} 10. d4 {[%clk 0:02:39.1]} 10... exd4 {[%clk 0:02:52.8]} 11. Nxd4
{[%clk 0:02:39.2]} 11... Nxd4 {[%clk 0:02:53.5]} 12. Qxd4 {[%clk 0:02:39.4]}
12... f5 {[%clk 0:02:54.1]} 13. Bd2 {[%clk 0:01:49.9]} 13... Bf6 {[%clk
0:02:37]} 14. Qd3 {[%clk 0:01:36.4]} 14... fxe4 {[%clk 0:02:33]} 15. Qxe4 {[%clk
0:01:26.7]} 15... c6 {[%clk 0:02:22]} 16. Rae1 {[%clk 0:01:23.4]} 16... d5
{[%clk 0:02:22.4]} 17. Qd3 {[%clk 0:01:08.9]} 17... Bd7 {[%clk 0:02:08.9]} 18.
Nd1 {[%clk 0:01:03]} 18... Qc7 {[%clk 0:02:03.2]} 19. c3 {[%clk 0:01:01]} 19...
Rae8 {[%clk 0:02:02.7]} 20. Bb1 {[%clk 0:01:00.2]} 20... g6 {[%clk 0:02:02.5]}
21. Bh6 {[%clk 0:01:00.2]} 21... Bf5 {[%clk 0:01:55.6]} 22. Bxf8 {[%clk
0:00:48]} 22... Rxf8 {[%clk 0:01:49.8]} 23. Qd2 {[%clk 0:00:35.8]} 23... Bxb1
{[%clk 0:01:49.9]} 24. Ne3 {[%clk 0:00:36.4]} 24... Bf5 {[%clk 0:01:42.8]} 25.
Nxf5 {[%clk 0:00:36.3]} 25... gxf5 {[%clk 0:01:43.7]} 26. Re6 {[%clk 0:00:35.6]}
26... Nc4 {[%clk 0:01:32.7]} 27. Qc2 {[%clk 0:00:29.6]} 27... Bg7 {[%clk
0:01:23.1]} 28. Rfe1 {[%clk 0:00:29.2]} 28... Qb6 {[%clk 0:01:15.9]} 29. b3
{[%clk 0:00:25.9]} 29... Nxa3 {[%clk 0:00:57.1]} 30. Qd1 {[%clk 0:00:25.2]}
30... Bxc3 {[%clk 0:00:50.4]} 31. R1e3 {[%clk 0:00:19.4]} 31... Bd4 {[%clk
0:00:32.8]} 32. Re7 {[%clk 0:00:19.7]} 32... Bxe3 {[%clk 0:00:03.9]} 33. Qh5
{[%clk 0:00:19.4]} 33... Bxf2+ {[%clk 0:00:04.6]} 34. Kh1 {[%clk 0:00:18.6]}
34... Qe3 {[%clk 0:00:02.3]} 35. Qxh7# {[%clk 0:00:17.6]} 1-0

[Event "Early-Titled-Tuesday-Blitz-February-13-2024"]
[Site "Chess.com"]
[Date "2024.02.13"]
[Round "3"]
[White "Happy1712Drummer"]
[Black "Ariadna_Atreides"]
[Result "1-0"]
[WhiteElo "2393"]
[BlackElo "2149"]
[TimeControl "180+1"]
[EndTime "8:32:05 PST"]
[Termination "Happy1712Drummer won by checkmate"]

1. e4 {[%clk 0:03:00.9]} 1... c6 {[%clk 0:02:59.2]} 2. d4 {[%clk 0:03:00.7]}
2... d5 {[%clk 0:02:57.6]} 3. Nc3 {[%clk 0:03:01]} 3... dxe4 {[%clk 0:02:58]} 4.
Nxe4 {[%clk 0:03:01.9]} 4... Nf6 {[%clk 0:02:58.3]} 5. Nxf6+ {[%clk 0:03:02.2]}
5... exf6 {[%clk 0:02:59.2]} 6. Be2 {[%clk 0:03:02.8]} 6... Bd6 {[%clk
0:02:58.8]} 7. Bf3 {[%clk 0:03:03.4]} 7... O-O {[%clk 0:02:58.1]} 8. Ne2 {[%clk
0:03:04]} 8... Re8 {[%clk 0:02:57.4]} 9. O-O {[%clk 0:03:01.8]} 9... Bf5 {[%clk
0:02:56.1]} 10. c4 {[%clk 0:02:59]} 10... Nd7 {[%clk 0:02:53.1]} 11. c5 {[%clk
0:02:41.8]} 11... Bc7 {[%clk 0:02:48.3]} 12. Nc3 {[%clk 0:02:18.5]} 12... Rc8
{[%clk 0:01:57.8]} 13. Be3 {[%clk 0:02:08.8]} 13... Bb8 {[%clk 0:01:37.2]} 14.
b4 {[%clk 0:02:01.6]} 14... Nf8 {[%clk 0:01:20.8]} 15. d5 {[%clk 0:01:47]} 15...
Be5 {[%clk 0:01:20.1]} 16. Rc1 {[%clk 0:01:42.9]} 16... Ng6 {[%clk 0:01:05.7]}
17. dxc6 {[%clk 0:01:24.7]} 17... bxc6 {[%clk 0:01:02.1]} 18. Qxd8 {[%clk
0:00:56.3]} 18... Rexd8 {[%clk 0:01:03]} 19. Rfd1 {[%clk 0:00:56.7]} 19... Nf4
{[%clk 0:00:36.8]} 20. Rxd8+ {[%clk 0:00:19.8]} 20... Rxd8 {[%clk 0:00:36.2]}
21. Rd1 {[%clk 0:00:18.7]} 21... Rc8 {[%clk 0:00:21.1]} 22. Ne4 {[%clk
0:00:09.2]} 22... Nd5 {[%clk 0:00:19.7]} 23. a3 {[%clk 0:00:05.5]} 23... g5
{[%clk 0:00:18.7]} 24. Nd6 {[%clk 0:00:05.2]} 24... Bxd6 {[%clk 0:00:17.7]} 25.
Bxd5 {[%clk 0:00:03.8]} 25... Bxh2+ {[%clk 0:00:16]} 26. Kh1 {[%clk 0:00:04.3]}
26... cxd5 {[%clk 0:00:16.4]} 27. Kxh2 {[%clk 0:00:04.4]} 27... Be4 {[%clk
0:00:15.6]} 28. f3 {[%clk 0:00:04.5]} 28... Bc2 {[%clk 0:00:14.3]} 29. Rxd5
{[%clk 0:00:04.8]} 29... Kg7 {[%clk 0:00:12.6]} 30. Rd6 {[%clk 0:00:05.2]} 30...
h5 {[%clk 0:00:11.9]} 31. Bd4 {[%clk 0:00:05.7]} 31... g4 {[%clk 0:00:06.8]} 32.
Rxf6 {[%clk 0:00:05.1]} 32... Kg8 {[%clk 0:00:06.2]} 33. Rh6 {[%clk 0:00:02.7]}
33... Rd8 {[%clk 0:00:05.6]} 34. Rh8# {[%clk 0:00:02.8]} 1-0

[Event "Early-Titled-Tuesday-Blitz-February-13-2024"]
[Site "Chess.com"]
[Date "2024.02.13"]
[Round "3"]
[White "Nikolakis2014"]
[Black "VladimirKramnik"]
[Result "0-1"]
[WhiteElo "2709"]
[BlackElo "2934"]
[TimeControl "180+1"]
[EndTime "8:32:07 PST"]
[Termination "VladimirKramnik won by resignation"]

1. d4 {[%clk 0:03:00.9]} 1... e6 {[%clk 0:02:58.7]} 2. c4 {[%clk 0:03:00]} 2...
Bb4+ {[%clk 0:02:59.1]} 3. Bd2 {[%clk 0:02:59.6]} 3... Bxd2+ {[%clk 0:02:58.2]}
4. Qxd2 {[%clk 0:02:59.6]} 4... Nf6 {[%clk 0:02:57.8]} 5. Nc3 {[%clk 0:02:59.5]}
5... d5 {[%clk 0:02:57.2]} 6. Nf3 {[%clk 0:02:58.9]} 6... O-O {[%clk 0:02:57.6]}
7. g3 {[%clk 0:02:58.8]} 7... dxc4 {[%clk 0:02:51.6]} 8. Bg2 {[%clk 0:02:57.9]}
8... Nc6 {[%clk 0:02:51.1]} 9. O-O {[%clk 0:02:57.4]} 9... Rb8 {[%clk
0:02:43.4]} 10. Rfd1 {[%clk 0:02:37.5]} 10... b5 {[%clk 0:02:38.8]} 11. Qc2
{[%clk 0:02:27.4]} 11... Nb4 {[%clk 0:02:32.5]} 12. Qc1 {[%clk 0:02:26]} 12...
Bb7 {[%clk 0:02:17.4]} 13. a3 {[%clk 0:02:25.6]} 13... Bxf3 {[%clk 0:02:10.9]}
14. Bxf3 {[%clk 0:02:09.9]} 14... Nbd5 {[%clk 0:02:11.1]} 15. e4 {[%clk
0:02:09.8]} 15... Nxc3 {[%clk 0:02:06]} 16. bxc3 {[%clk 0:02:09.9]} 16... Qe7
{[%clk 0:02:04.7]} 17. a4 {[%clk 0:02:03.6]} 17... b4 {[%clk 0:02:00.1]} 18.
cxb4 {[%clk 0:02:03.6]} 18... Rxb4 {[%clk 0:02:00.3]} 19. Qc2 {[%clk 0:01:58.7]}
19... e5 {[%clk 0:01:53.7]} 20. Rab1 {[%clk 0:01:51.6]} 20... Rxb1 {[%clk
0:01:18.9]} 21. Qxb1 {[%clk 0:01:39.3]} 21... exd4 {[%clk 0:01:17.3]} 22. Rxd4
{[%clk 0:01:31.1]} 22... Qc5 {[%clk 0:01:17.9]} 23. Rd1 {[%clk 0:01:23.4]} 23...
h5 {[%clk 0:01:15.1]} 24. Qb5 {[%clk 0:01:19.3]} 24... Qa3 {[%clk 0:00:58]} 25.
Qf5 {[%clk 0:00:52.1]} 25... c3 {[%clk 0:00:47.6]} 26. e5 {[%clk 0:00:51.8]}
26... Ng4 {[%clk 0:00:21.7]} 27. e6 {[%clk 0:00:34.1]} 27... c2 {[%clk
0:00:16.7]} 28. exf7+ {[%clk 0:00:32.3]} 28... Kh8 {[%clk 0:00:16.4]} 29. Bxg4
{[%clk 0:00:20.6]} 29... c1=Q {[%clk 0:00:14.5]} 30. Rxc1 {[%clk 0:00:08.2]}
30... Qxc1+ {[%clk 0:00:14.7]} 31. Kg2 {[%clk 0:00:08.8]} 31... hxg4 {[%clk
0:00:14.4]} 32. Qe5 {[%clk 0:00:06.2]} 32... Qc6+ {[%clk 0:00:13.6]} 33. Kg1
{[%clk 0:00:05.9]} 33... Rxf7 {[%clk 0:00:13.3]} 34. Qh5+ {[%clk 0:00:05.6]}
34... Kg8 {[%clk 0:00:13.2]} 35. Qxg4 {[%clk 0:00:06.5]} 35... Qc1+ {[%clk
0:00:13]} 0-1

[Event "Early-Titled-Tuesday-Blitz-February-13-2024"]
[Site "Chess.com"]
[Date "2024.02.13"]
[Round "3"]
[White "BJthechessgod"]
[Black "kleinebeer98"]
[Result "0-1"]
[WhiteElo "2433"]
[BlackElo "2832"]
[TimeControl "180+1"]
[EndTime "8:32:07 PST"]
[Termination "kleinebeer98 won by resignation"]

1. e4 {[%clk 0:01:59.9]} 1... e5 {[%clk 0:02:57.7]} 2. Nf3 {[%clk 0:01:59.5]}
2... Nc6 {[%clk 0:02:58.3]} 3. Bc4 {[%clk 0:02:00]} 3... Nf6 {[%clk 0:02:58.4]}
4. d3 {[%clk 0:02:00.3]} 4... h6 {[%clk 0:02:59]} 5. O-O {[%clk 0:02:00.7]} 5...
d6 {[%clk 0:02:59.6]} 6. a4 {[%clk 0:02:00.8]} 6... g5 {[%clk 0:02:59.8]} 7. Re1
{[%clk 0:01:59.5]} 7... g4 {[%clk 0:02:59.3]} 8. Nfd2 {[%clk 0:01:59.9]} 8...
Qe7 {[%clk 0:02:56.4]} 9. Nf1 {[%clk 0:01:59.6]} 9... Be6 {[%clk 0:02:56.7]} 10.
Nbd2 {[%clk 0:01:59.1]} 10... O-O-O {[%clk 0:02:54.1]} 11. c3 {[%clk 0:01:58.4]}
11... d5 {[%clk 0:02:52.2]} 12. exd5 {[%clk 0:01:58.5]} 12... Nxd5 {[%clk
0:02:53.1]} 13. Ne3 {[%clk 0:01:54.3]} 13... Nf4 {[%clk 0:02:49.6]} 14. Bxe6+
{[%clk 0:01:39.9]} 14... Qxe6 {[%clk 0:02:50.5]} 15. Qxg4 {[%clk 0:01:24.5]}
15... Qxg4 {[%clk 0:02:48.4]} 16. Nxg4 {[%clk 0:01:25.4]} 16... Nxd3 {[%clk
0:02:41.5]} 17. Rd1 {[%clk 0:01:25.1]} 17... f5 {[%clk 0:02:23.2]} 18. Ne3
{[%clk 0:01:21.2]} 18... f4 {[%clk 0:02:23.7]} 19. Nec4 {[%clk 0:01:16.1]} 19...
Be7 {[%clk 0:02:04.4]} 20. Ne4 {[%clk 0:01:06.4]} 20... Nc5 {[%clk 0:02:04.4]}
21. Rxd8+ {[%clk 0:00:38.8]} 21... Rxd8 {[%clk 0:02:05.3]} 22. Ned2 {[%clk
0:00:37.3]} 22... e4 {[%clk 0:02:04.1]} 23. b4 {[%clk 0:00:35.6]} 23... Nb3
{[%clk 0:01:59.5]} 24. Rb1 {[%clk 0:00:30.8]} 24... e3 {[%clk 0:01:52.9]} 25.
fxe3 {[%clk 0:00:29]} 25... Nxc1 {[%clk 0:01:43.7]} 26. Rxc1 {[%clk 0:00:28.3]}
26... fxe3 {[%clk 0:01:44.6]} 27. Nf3 {[%clk 0:00:24.8]} 27... Rd3 {[%clk
0:01:03.7]} 28. Ne1 {[%clk 0:00:17.7]} 28... Rd2 {[%clk 0:00:59.5]} 29. Nxe3
{[%clk 0:00:16.3]} 29... Ra2 {[%clk 0:00:57.6]} 30. N1c2 {[%clk 0:00:09.6]}
30... Rxa4 {[%clk 0:00:54.5]} 31. Rf1 {[%clk 0:00:09.2]} 31... Ra2 {[%clk
0:00:48.5]} 32. Rf7 {[%clk 0:00:08.2]} 32... Bg5 {[%clk 0:00:43.4]} 33. b5
{[%clk 0:00:07.1]} 33... Ne5 {[%clk 0:00:43.3]} 34. Rg7 {[%clk 0:00:05.6]} 34...
Rb2 {[%clk 0:00:31.7]} 35. h4 {[%clk 0:00:04.6]} 35... Bxh4 {[%clk 0:00:28.2]}
36. Nd4 {[%clk 0:00:02.9]} 36... Bf2+ {[%clk 0:00:28.1]} 37. Kh2 {[%clk
0:00:02.9]} 37... Bxe3 {[%clk 0:00:28.6]} 38. Ne6 {[%clk 0:00:03.4]} 38... Bb6
{[%clk 0:00:27.3]} 39. Rg8+ {[%clk 0:00:01.6]} 39... Kd7 {[%clk 0:00:27.4]} 40.
Nf8+ {[%clk 0:00:01.8]} 40... Kd6 {[%clk 0:00:27.9]} 41. Rg7 {[%clk 0:00:02.1]}
41... Rxb5 {[%clk 0:00:26.3]} 42. Rh7 {[%clk 0:00:02.7]} 42... Kd5 {[%clk
0:00:25.8]} 43. Kg3 {[%clk 0:00:02.3]} 43... Rb3 {[%clk 0:00:25.4]} 44. Rxh6
{[%clk 0:00:02.5]} 44... Rxc3+ {[%clk 0:00:26]} 45. Kf4 {[%clk 0:00:03.1]} 45...
Be3+ {[%clk 0:00:26.5]} 46. Kf5 {[%clk 0:00:03.7]} 46... Bxh6 {[%clk 0:00:27.3]}
0-1

[Event "Early-Titled-Tuesday-Blitz-February-13-2024"]
[Site "Chess.com"]
[Date "2024.02.13"]
[Round "3"]
[White "edgarhay012"]
[Black "ilqar_74"]
[Result "1-0"]
[WhiteElo "2617"]
[BlackElo "2818"]
[TimeControl "180+1"]
[EndTime "8:32:09 PST"]
[Termination "edgarhay012 won by resignation"]

1. e4 {[%clk 0:03:00.9]} 1... c5 {[%clk 0:02:58.1]} 2. Nc3 {[%clk 0:03:00.4]}
2... d6 {[%clk 0:02:58.4]} 3. d4 {[%clk 0:03:00.2]} 3... cxd4 {[%clk 0:02:59.3]}
4. Qxd4 {[%clk 0:03:00.9]} 4... Nc6 {[%clk 0:02:58.9]} 5. Qd2 {[%clk 0:03:01.1]}
5... g6 {[%clk 0:02:58.8]} 6. b3 {[%clk 0:03:01.6]} 6... Bg7 {[%clk 0:02:59.4]}
7. Bb2 {[%clk 0:03:01.6]} 7... Nf6 {[%clk 0:03:00.1]} 8. O-O-O {[%clk
0:03:01.9]} 8... O-O {[%clk 0:03:00.8]} 9. f3 {[%clk 0:03:02.4]} 9... a5 {[%clk
0:03:01.4]} 10. Kb1 {[%clk 0:03:00.8]} 10... Be6 {[%clk 0:03:00.7]} 11. g4
{[%clk 0:03:00.8]} 11... Nb4 {[%clk 0:02:54.2]} 12. h4 {[%clk 0:02:40.3]} 12...
a4 {[%clk 0:02:36.8]} 13. Nge2 {[%clk 0:02:10.5]} 13... axb3 {[%clk 0:02:35.6]}
14. cxb3 {[%clk 0:02:11]} 14... Qa5 {[%clk 0:02:25.2]} 15. Nc1 {[%clk
0:01:49.5]} 15... Nd7 {[%clk 0:02:12.2]} 16. a3 {[%clk 0:01:40.4]} 16... Nc6
{[%clk 0:02:00.8]} 17. h5 {[%clk 0:01:24.8]} 17... Nd4 {[%clk 0:01:45.9]} 18.
Nd5 {[%clk 0:01:04.7]} 18... Bxd5 {[%clk 0:01:43.3]} 19. Qxa5 {[%clk 0:01:03.5]}
19... Rxa5 {[%clk 0:01:42.1]} 20. Bxd4 {[%clk 0:01:03.7]} 20... Be6 {[%clk
0:01:39.8]} 21. Bxg7 {[%clk 0:00:58.7]} 21... Kxg7 {[%clk 0:01:40.7]} 22. Kb2
{[%clk 0:00:58.5]} 22... Ne5 {[%clk 0:01:37.2]} 23. Be2 {[%clk 0:00:56.5]} 23...
Rc8 {[%clk 0:01:34.9]} 24. Nd3 {[%clk 0:00:41]} 24... Nxd3+ {[%clk 0:01:28.9]}
25. Bxd3 {[%clk 0:00:38.1]} 25... g5 {[%clk 0:01:27.7]} 26. Rc1 {[%clk
0:00:34.7]} 26... Rac5 {[%clk 0:01:19.1]} 27. Rxc5 {[%clk 0:00:34.3]} 27... Rxc5
{[%clk 0:01:20]} 28. b4 {[%clk 0:00:34.1]} 28... Rc7 {[%clk 0:01:19.5]} 29. Rc1
{[%clk 0:00:34.5]} 29... Rxc1 {[%clk 0:01:18.9]} 30. Kxc1 {[%clk 0:00:35.4]}
30... h6 {[%clk 0:01:18.2]} 31. a4 {[%clk 0:00:33.4]} 31... Kf6 {[%clk
0:01:18.8]} 32. Kd2 {[%clk 0:00:30.8]} 32... Ke5 {[%clk 0:01:17.5]} 33. Ke3
{[%clk 0:00:30.6]} 33... d5 {[%clk 0:01:18]} 34. exd5 {[%clk 0:00:29.5]} 34...
Kxd5 {[%clk 0:01:03.5]} 35. a5 {[%clk 0:00:25.4]} 35... Kd6 {[%clk 0:00:58.3]}
36. Kd4 {[%clk 0:00:19.1]} 36... Bd7 {[%clk 0:00:54.9]} 37. b5 {[%clk
0:00:17.3]} 37... e5+ {[%clk 0:00:55]} 38. Kc4 {[%clk 0:00:14.4]} 38... Be6+
{[%clk 0:00:54.2]} 39. Kb4 {[%clk 0:00:14.7]} 39... Kc7 {[%clk 0:00:33.6]} 40.
Kc5 {[%clk 0:00:12.4]} 40... f6 {[%clk 0:00:25.5]} 41. Be4 {[%clk 0:00:10.6]}
41... Bc8 {[%clk 0:00:21]} 42. b6+ {[%clk 0:00:06.6]} 42... Kd7 {[%clk 0:00:21]}
43. Bf5+ {[%clk 0:00:06.3]} 1-0